bitfinex-derivatives/quotes_SOLF0:USTF0_20240911
["timestamp","ask_amount","ask_price","bid_price","bid_amount"]
[1726076209153,3.69022406,132.44,132.37,3.7769]
[1726076209552,3.7761,132.41,132.38,3.7767]
[1726076209950,3.69022406,132.44,132.36,1.3081]
[1726076210159,3.7753,132.43,132.36,1.3081]
[1726076210358,1.418,132.46,132.36,1.3081]
[1726076210662,1.418,132.46,132.37,1.4493]
[1726076210842,1.418,132.46,132.39,3.7764]
[1726076211450,3.7758,132.42,132.39,3.7764]
[1726076211658,3.7758,132.42,132.38,3.7766]
[1726076211855,3.7758,132.42,132.37,1.4493]
[1726076212372,3.7758,132.42,132.39,3.7763]
[1726076212451,1.418,132.46,132.37,1.4493]
[1726076212643,120.78033252,132.49,132.37,1.4493]
[1726076212644,149.77033252,132.49,132.37,1.4493]
[1726076212843,151.17613252,132.49,132.37,1.4493]
[1726076213348,151.17613252,132.49,132.4,3.776]
[1726076213749,151.17613252,132.49,132.37,1.4493]
[1726076213951,31.7795,132.49,132.38,28.99]
[1726076214455,31.7795,132.49,132.41,3.7757]
[1726076214658,31.7795,132.49,132.39,3.84981491]
[1726076215148,3.7749,132.45,132.39,3.84981491]
[1726076215458,31.7795,132.49,132.39,3.84981491]
[1726076215819,3.7747,132.46,132.42,3.7756]
[1726076216253,31.7795,132.49,132.39,3.84981491]
[1726076216454,31.7795,132.49,132.39,5.16781491]
[1726076216651,2.7895,132.49,132.39,1.318]
[1726076216963,3.7746,132.46,132.43,3.7751]
[1726076217457,3.7746,132.46,132.4,3.73064887]
[1726076218461,3.7746,132.46,132.42,3.7754]
[1726076218876,3.7744,132.47,132.4,3.73064887]
[1726076219069,2.7895,132.49,132.41,28.99]
[1726076219255,2.7895,132.49,132.41,32.80863766]
[1726076219456,3.7744,132.47,132.43,3.7752]
[1726076220066,3.7745,132.46,132.43,3.7752]
[1726076220362,20.9095,132.49,132.39,19.438]
[1726076220563,3.7749,132.45,132.39,19.438]
[1726076220764,20.9095,132.49,132.4,3.76208598]
[1726076220969,3.7743,132.47,132.41,3.82967741]
[1726076221155,3.7743,132.47,132.39,19.438]
[1726076221450,3.7743,132.47,132.44,3.7749]
[1726076221872,18.12,132.51,132.43,18.12]
[1726076222166,3.7742,132.48,132.44,1.4212]
[1726076222765,3.7738,132.49,132.46,3.7745]
[1726076224263,3.774,132.48,132.45,3.7746]
[1726076224769,3.76076268,132.52,132.44,3.7748]
[1726076224968,18.12,132.53,132.41,19.5508]
[1726076225290,3.7741,132.48,132.41,19.5508]
[1726076225466,3.7741,132.48,132.46,3.7745]
[1726076225773,3.7741,132.48,132.41,19.5508]
[1726076226063,3.7741,132.48,132.45,3.7746]
[1726076226468,3.7734,132.5,132.41,19.5508]
[1726076226672,3.7734,132.5,132.47,3.7741]
[1726076226872,24.62995541,132.54,132.45,18.12]
[1726076227073,3.7732,132.51,132.45,18.12]
[1726076227376,18.12,132.54,132.45,18.12]
[1726076227574,18.12,132.56,132.49,3.7735]
[1726076227782,1.21824841,132.55,132.47,21.90161983]
[1726076227984,18.12,132.56,132.48,1.3795]
[1726076228261,3.773,132.52,132.49,3.7735]
[1726076228767,3.773,132.52,132.48,1.3795]
[1726076229363,1.21821989,132.55,132.48,1.3795]
[1726076229976,3.7729,132.52,132.48,1.3795]
[1726076230477,1.21821989,132.55,132.48,1.3795]
[1726076231083,3.7736,132.49,132.48,1.3795]
[1726076232079,3.7745,132.46,132.45,1.3693]
[1726076232377,18.12,132.52,132.44,1.4269]
[1726076232581,3.7748,132.45,132.44,1.4269]
[1726076233174,19.4605,132.52,132.41,24.6693]
[1726076233175,3.7135739,132.49,132.41,2.7736]
[1726076233376,18.12,132.5,132.41,2.7736]
[1726076233673,18.12,132.49,132.41,1.4143]
[1726076233977,3.72205438,132.48,132.41,1.4143]
[1726076234180,21.82808157,132.47,132.4,170.25192916]
[1726076234380,18.12,132.45,132.38,528.71625]
[1726076234636,3.7765,132.39,132.38,528.71625]
[1726076240394,3.7765,132.39,132.38,524.93805]
[1726076243286,32.8065,132.39,132.38,410.09805]
[1726076243485,32.8065,132.39,132.38,379.11805]
[1726076244189,32.8065,132.39,132.38,375.21575]
[1726076244493,32.8065,132.39,132.38,339.00065]
[1726076244595,32.8065,132.39,132.38,334.32525]
[1726076244794,32.8065,132.39,132.38,320.41405]
[1726076245688,34.02656222,132.39,132.38,310.24455]
[1726076245884,34.02656222,132.39,132.38,195.40455]
[1726076246092,32.8065,132.39,132.38,195.40455]
[1726076246690,32.8065,132.39,132.38,164.42455]
[1726076247196,32.8065,132.39,132.38,133.66455]
[1726076248897,32.8065,132.39,132.38,80.56455]
[1726076249294,32.72937307,132.4,132.38,80.56455]
[1726076249295,36.50567307,132.4,132.38,80.56455]
[1726076249494,29.03,132.4,132.38,80.56455]
[1726076249688,29.03,132.42,132.38,80.56455]
[1726076249884,3.776,132.41,132.38,80.56455]
[1726076250397,3.7765,132.39,132.38,80.56455]
[1726076250596,3.85647343,132.39,132.31,1.4438]
[1726076250799,29.03,132.4,132.33,3.7781]
[1726076251105,32.75194089,132.4,132.31,1.4438]
[1726076251398,32.75194089,132.4,132.32,3.7783]
[1726076251588,32.75194089,132.4,132.31,1.4438]
[1726076251989,29.03,132.38,132.31,1.4438]
[1726076253104,3.74121381,132.39,132.31,1.4438]
[1726076253294,29.03,132.4,132.31,1.4438]
[1726076253994,3.73243095,132.39,132.31,1.4438]
[1726076254423,7.50903095,132.39,132.35,3.7776]
[1726076254596,3.73243095,132.39,132.35,3.7776]
[1726076254880,7.50893095,132.39,132.35,3.7776]
[1726076256402,3.7764,132.4,132.31,1.4438]
[1726076256603,3.78269047,132.4,132.31,1.4438]
[1726076256802,29.03,132.42,132.31,1.4438]
[1726076257000,3.7765,132.39,132.35,3.7774]
[1726076257404,7.4918229,132.4,132.31,1.4438]
[1726076257714,3.7763,132.4,132.32,29.03]
[1726076257901,3.7763,132.4,132.33,1.3921]
[1726076258103,7.61765114,132.4,132.36,3.7772]
[1726076258896,3.84135114,132.4,132.37,3.777]
[1726076259095,3.776,132.41,132.37,3.777]
[1726076259299,30.3938,132.44,132.37,3.777]
[1726076259702,30.3938,132.44,132.36,3.7772]
[1726076259904,1.21942873,132.43,132.36,3.7772]
[1726076260599,1.21942873,132.43,132.37,3.777]
[1726076260806,30.3938,132.44,132.34,1.3708]
[1726076261004,29.03,132.44,132.34,30.4008]
[1726076261806,29.03,132.44,132.34,1.3708]
[1726076262003,29.03,132.42,132.34,1.3708]
[1726076262406,3.7767,132.39,132.35,3.7776]
[1726076262708,7.51470347,132.39,132.35,3.7776]
[1726076262910,3.73800347,132.39,132.33,1.3921]
[1726076263103,3.7773,132.37,132.33,1.3921]
[1726076263409,29.03,132.4,132.33,1.3921]
[1726076263410,3.81281644,132.38,132.33,1.3921]
[1726076263600,3.7769,132.38,132.34,3.7779]
[1726076263800,7.48165326,132.38,132.34,3.7779]
[1726076264203,3.7771,132.37,132.34,3.7779]
[1726076264399,3.70475326,132.38,132.35,3.7775]
[1726076264600,32.87894259,132.47,132.35,3.7775]
[1726076264601,29.03,132.42,132.35,3.7775]
[1726076264826,3.7767,132.39,132.35,3.7775]
[1726076265005,29.03,132.42,132.33,1.3921]
[1726076265006,3.87121154,132.38,132.33,1.3921]
[1726076265202,3.7771,132.37,132.33,1.3921]
[1726076265605,3.7771,132.37,132.34,3.7778]
[1726076266111,3.7773,132.36,132.33,5.1703]
[1726076267209,3.81036958,132.38,132.33,1.3921]
[1726076267522,29.03,132.4,132.33,1.3921]
[1726076267731,3.7772,132.37,132.33,5.1703]
[1726076268207,3.77399897,132.38,132.33,5.1703]
[1726076268515,29.03,132.4,132.33,1.3921]
[1726076268516,32.8285619,132.4,132.33,1.3921]
[1726076268808,3.7985619,132.4,132.33,1.3921]
[1726076269005,3.7764,132.4,132.36,3.7771]
[1726076269200,3.81934591,132.39,132.34,1.3832]
[1726076269405,29.03,132.43,132.34,1.3832]
[1726076269810,3.7762,132.4,132.34,1.3832]
[1726076270003,3.72978571,132.39,132.34,1.3832]
[1726076270612,3.72978571,132.39,132.36,3.7772]
[1726076271014,7.50628571,132.39,132.34,1.3832]
[1726076271330,3.7765,132.39,132.34,1.3832]
[1726076271415,3.79978625,132.39,132.34,1.3832]
[1726076271605,3.7772,132.37,132.34,1.3832]
[1726076271806,3.81225572,132.38,132.34,1.3832]
[1726076272007,29.03,132.41,132.34,1.3832]
[1726076272713,3.7772,132.37,132.34,1.3832]
[1726076273800,3.76955725,132.38,132.35,3.7776]
[1726076274010,29.03,132.41,132.34,1.3832]
[1726076274723,29.03,132.41,132.33,1.3921]
[1726076275019,29.03,132.39,132.31,1.36]
[1726076275215,32.76554961,132.39,132.31,1.36]
[1726076275806,3.7776,132.36,132.32,3.7783]
[1726076276208,32.76554961,132.39,132.32,3.7783]
[1726076276818,29.03,132.37,132.31,1.36]
[1726076277122,3.7782,132.33,132.31,1.36]
[1726076277413,29.03,132.37,132.31,1.36]
[1726076278017,3.7784,132.33,132.31,1.36]
[1726076278511,3.7784,132.33,132.29,5.1061]
[1726076278719,3.7787,132.32,132.29,1.3268]
[1726076279915,3.7788,132.31,132.29,1.3268]
[1726076280725,3.7792,132.3,132.27,1.4503]
[1726076281110,32.76355976,132.32,132.27,1.4503]
[1726076281312,3.73355976,132.32,132.27,1.4503]
[1726076281615,29.03,132.34,132.27,1.4503]
[1726076282120,29.03,132.34,132.29,3.7792]
[1726076282315,3.7783,132.33,132.27,1.4503]
[1726076282613,3.7783,132.33,132.29,3.7792]
[1726076282815,3.7786,132.32,132.27,1.4503]
[1726076283018,29.03,132.36,132.27,1.4503]
[1726076283405,3.7782,132.33,132.27,1.4503]
[1726076284185,3.7785,132.32,132.29,3.7792]
[1726076285311,3.7783,132.33,132.29,3.7792]
[1726076285711,3.7783,132.33,132.3,3.779]
[1726076286018,3.7785,132.32,132.27,1.4503]
[1726076286521,32.76554961,132.39,132.27,1.4503]
[1726076286814,29.03,132.39,132.29,29.03]
[1726076287043,3.71456234,132.38,132.29,32.75817156]
[1726076287419,29.03,132.41,132.29,32.75817156]
[1726076287624,3.7775,132.36,132.32,3.7783]
[1726076287826,32.78765363,132.41,132.29,29.03]
[1726076288023,1.2196979,132.4,132.29,29.03]
[1726076288224,1.2196979,132.4,132.28,3.85894625]
[1726076288225,29.03,132.38,132.28,3.85894625]
[1726076288519,7.5485,132.47,132.29,29.03]
[1726076288716,29.03,132.42,132.29,29.03]
[1726076288923,3.7768,132.38,132.34,3.7776]
[1726076289111,3.74291329,132.4,132.29,29.03]
[1726076289423,3.7766,132.39,132.35,3.7774]
[1726076290332,29.03,132.39,132.33,4.1422]
[1726076290627,29.03,132.36,132.25,29.03]
[1726076290821,29.03,132.36,132.29,1.4478]
[1726076291023,29.03,132.39,132.29,1.4478]
[1726076291521,29.03,132.39,132.29,30.4778]
[1726076291723,29.03,132.39,132.29,1.4478]
[1726076292927,3.7775,132.36,132.29,1.4478]
[1726076293228,29.03,132.39,132.29,1.4478]
[1726076293424,29.03,132.34,132.23,29.03]
[1726076293637,3.81123057,132.39,132.22,3.84524591]
[1726076293837,29.03,132.28,132.12,17.77258775]
[1726076294021,29.03,132.28,132.1,7.5694]
[1726076294022,3.86338743,132.28,132.16,29.03]
[1726076294328,29.03,132.27,132.17,1.3428]
[1726076295527,29.03,132.27,132.18,29.03]
[1726076295728,29.03,132.27,132.19,1.3984]
[1726076296029,29.03,132.29,132.2,29.03]
[1726076296232,29.03,132.32,132.2,30.4317]
[1726076296423,29.03,132.32,132.2,34.12384209]
[1726076297257,29.03,132.34,132.22,29.03]
[1726076297633,3.779,132.31,132.22,29.03]
[1726076298020,3.779,132.31,132.26,3.78]
[1726076298332,3.7791,132.3,132.26,3.78]
[1726076300239,3.7791,132.3,132.27,3.7799]
[1726076300625,3.7791,132.3,132.22,29.03]
[1726076300826,3.7791,132.3,132.26,3.7799]
[1726076301028,3.7787,132.32,132.22,29.03]
[1726076301229,29.03,132.34,132.27,3.7797]
[1726076301529,3.7787,132.32,132.24,29.03]
[1726076301830,29.03,132.36,132.25,1.4016]
[1726076302137,29.03,132.38,132.26,29.03]
[1726076302319,29.03,132.38,132.27,5.09337618]
[1726076302522,29.03,132.38,132.3,3.7788]
[1726076302723,3.7782,132.34,132.3,3.7788]
[1726076303129,29.03,132.38,132.29,3.7793]
[1726076303929,3.7785,132.32,132.28,3.7795]
[1726076304132,32.7184688,132.4,132.27,1.324]
[1726076304133,29.03,132.36,132.27,1.324]
[1726076304537,3.779,132.31,132.27,5.1038]
[1726076304931,3.77882812,132.33,132.27,1.324]
[1726076305236,29.03,132.34,132.25,5.1819]
[1726076305237,3.7795,132.29,132.25,5.1819]
[1726076305630,3.7796,132.28,132.25,5.1819]
[1726076306130,29.03,132.31,132.25,1.4016]
[1726076306730,3.7798,132.28,132.25,1.4016]
[1726076306930,3.7798,132.28,132.25,5.182]
[1726076307126,32.78501198,132.31,132.25,1.4016]
[1726076307325,3.7792,132.3,132.25,1.4016]
[1726076307620,32.78501198,132.31,132.25,1.4016]
[1726076307729,3.7795,132.29,132.25,1.4016]
[1726076308137,3.7795,132.29,132.25,5.1819]
[1726076310437,3.7795,132.29,132.26,3.7801]
[1726076310622,3.7791,132.3,132.25,1.4016]
[1726076310829,235.5533,132.39,132.28,3.7794]
[1726076310830,29.03,132.35,132.28,3.7794]
[1726076311029,29.03,132.35,132.25,30.4316]
[1726076311233,3.7787,132.32,132.26,1.3091]
[1726076311428,3.7787,132.32,132.29,3.7793]
[1726076311734,3.7783,132.33,132.26,1.3091]
[1726076312237,3.778,132.34,132.26,1.3091]
[1726076312438,29.03,132.37,132.26,1.3091]
[1726076313030,29.03,132.37,132.27,32.89699569]
[1726076314342,3.7779,132.34,132.3,3.7788]
[1726076315848,3.7789,132.31,132.28,3.7794]
[1726076316136,29.03,132.37,132.26,1.3091]
[1726076317242,29.03,132.37,132.28,3.7795]
[1726076317441,29.03,132.37,132.26,1.3091]
[1726076318739,29.03,132.35,132.28,3.7795]
[1726076318940,29.03,132.35,132.26,1.3091]
[1726076319547,3.7789,132.31,132.26,1.3091]
[1726076319846,29.03,132.35,132.26,1.3091]
[1726076320054,29.03,132.35,132.28,3.7795]
[1726076320655,3.7784,132.33,132.29,3.7793]
[1726076320855,29.03,132.35,132.29,3.7793]
[1726076321452,29.03,132.35,132.28,3.7795]
[1726076322060,29.03,132.35,132.27,3.7797]
[1726076322255,18.13,132.34,132.27,3.7797]
[1726076322850,3.779,132.31,132.27,3.7797]
[1726076323250,3.7788,132.31,132.28,3.7794]
[1726076325557,3.7791,132.3,132.27,3.7798]
[1726076325861,18.13,132.34,132.26,1.3091]
[1726076326459,3.7789,132.31,132.26,1.3091]
[1726076327161,3.7789,132.31,132.28,3.7796]
[1726076327366,3.7789,132.31,132.26,1.3091]
[1726076327661,3.7791,132.3,132.27,3.7797]
[1726076328562,3.82087902,132.33,132.25,1.4016]
[1726076328863,18.13,132.32,132.25,1.4016]
[1726076329061,3.7798,132.28,132.25,3.7803]
[1726076331668,3.7799,132.27,132.24,3.7807]
[1726076333065,3.7799,132.27,132.23,1.3697]
[1726076333066,3.7796,132.29,132.23,1.3697]
[1726076333266,18.13,132.36,132.25,18.13]
[1726076333458,7.552,132.41,132.31,3.7788]
[1726076333459,3.8024654,132.37,132.31,3.7788]
[1726076333660,3.7781,132.34,132.31,3.7788]
[1726076334264,3.7782,132.33,132.3,3.779]
[1726076335069,3.7785,132.32,132.29,3.7792]
[1726076335858,3.7783,132.33,132.3,3.779]
[1726076336073,18.13,132.36,132.3,3.779]
[1726076336571,3.7784,132.33,132.3,3.779]
[1726076336960,3.779,132.31,132.23,5.14304946]
[1726076337162,3.779,132.31,132.24,18.13]
[1726076337562,7.55798291,132.33,132.24,18.13]
[1726076337762,18.13,132.36,132.24,18.13]
[1726076337964,18.13,132.36,132.28,3.7796]
[1726076338350,3.7789,132.31,132.24,18.13]
[1726076338470,3.7789,132.31,132.28,3.7794]
[1726076339064,3.7789,132.31,132.24,18.13]
[1726076339966,3.7792,132.3,132.24,18.13]
[1726076340274,3.78874943,132.33,132.27,3.7797]
[1726076340468,3.7791,132.3,132.27,3.7797]
[1726076340864,3.85301678,132.32,132.23,23.27304946]
[1726076341144,3.7798,132.28,132.23,23.27304946]
[1726076341262,3.7798,132.28,132.25,3.7803]
[1726076341970,3.8182368,132.31,132.23,23.27304946]
[1726076342467,3.7793,132.29,132.23,23.27304946]
[1726076343278,3.7793,132.29,132.26,3.78]
[1726076343969,3.7793,132.29,132.23,23.27304946]
[1726076344568,3.7793,132.29,132.26,3.7799]
[1726076345076,3.7793,132.3,132.27,3.7798]
[1726076345277,18.13,132.34,132.23,23.27304946]
[1726076345582,18.13,132.34,132.26,18.13]
[1726076346073,18.13,132.36,132.27,18.13]
[1726076346370,18.13,132.36,132.28,1.4216]
[1726076346569,3.7781,132.34,132.28,1.4216]
[1726076347177,3.7781,132.34,132.3,3.7789]
[1726076347632,3.7781,132.34,132.28,1.4216]
[1726076347792,18.13,132.38,132.32,3.7783]
[1726076348141,21.90070256,132.38,132.32,3.7783]
[1726076348182,3.7776,132.36,132.32,3.7783]
[1726076348480,21.90070256,132.38,132.32,3.7783]
[1726076348674,21.90070256,132.38,132.29,1.4261]
[1726076348884,3.7779,132.35,132.31,3.7787]
[1726076349276,21.90070256,132.38,132.29,1.4261]
[1726076350087,21.90070256,132.38,132.33,3.7782]
[1726076350088,3.7774,132.36,132.33,3.7782]
[1726076350279,18.13,132.38,132.33,3.7782]
[1726076350475,21.88642576,132.38,132.33,3.7782]
[1726076350690,468.44043465,132.48,132.32,18.13]
[1726076350979,18.13,132.43,132.32,21.8663925]
[1726076351192,3.7764,132.4,132.32,21.8663925]
[1726076351685,3.7766,132.39,132.32,21.8663925]
[1726076351877,18.13,132.43,132.32,21.8663925]
[1726076352075,18.13,132.41,132.32,21.8663925]
[1726076352278,21.85629551,132.41,132.3,18.13]
[1726076352477,18.13,132.39,132.3,18.13]
[1726076352680,3.7775,132.36,132.29,5.14597281]
[1726076352880,18.13,132.38,132.29,1.4261]
[1726076353088,18.13,132.38,132.31,3.7785]
[1726076353285,3.7778,132.35,132.29,1.4261]
[1726076353791,18.13,132.36,132.31,3.7786]
[1726076353983,3.7782,132.33,132.29,1.4261]
[1726076354186,3.7782,132.33,132.3,3.7789]
[1726076354388,18.13,132.36,132.3,3.7789]
[1726076354389,3.778,132.34,132.3,3.7789]
[1726076355483,3.778,132.34,132.31,3.7788]
[1726076356690,7.54253167,132.35,132.31,3.7788]
[1726076356880,3.7777,132.35,132.31,3.7788]
[1726076357204,3.7777,132.35,132.29,1.4261]
[1726076357708,3.7775,132.36,132.32,3.7784]
[1726076358087,3.70530721,132.37,132.29,1.4261]
[1726076358290,18.13,132.38,132.29,1.4261]
[1726076358834,3.777,132.38,132.34,3.7777]
[1726076359395,3.7771,132.37,132.34,3.7777]
[1726076359584,18.13,132.4,132.3,18.13]
[1726076359785,3.7764,132.4,132.32,18.13]
[1726076360190,3.7764,132.4,132.37,3.777]
[1726076360496,3.7759,132.41,132.34,3.86716691]
[1726076360693,3.7759,132.41,132.37,3.7768]
[1726076360887,18.13,132.42,132.35,1.4326]
[1726076361094,3.7765,132.39,132.35,5.2101]
[1726076361591,3.7765,132.39,132.35,1.4326]
[1726076362094,3.87321409,132.41,132.35,1.4326]
[1726076362890,3.87321409,132.41,132.35,5.2101]
[1726076363290,3.7766,132.39,132.35,5.2101]
[1726076363793,3.7769,132.38,132.35,5.2101]
[1726076363992,3.87321409,132.41,132.35,1.4326]
[1726076364291,3.7769,132.38,132.35,1.4326]
[1726076364495,3.7769,132.38,132.35,5.21]
[1726076364692,3.87321409,132.41,132.35,5.21]
[1726076365599,18.13,132.42,132.35,1.4326]
[1726076366493,3.7764,132.4,132.37,3.777]
[1726076367205,3.7764,132.4,132.35,1.4326]
[1726076367206,3.776,132.41,132.38,3.7768]
[1726076367892,18.13,132.43,132.35,2.806]
[1726076368496,3.7761,132.41,132.37,3.7768]
[1726076368694,18.13,132.43,132.35,2.806]
[1726076369198,3.7758,132.42,132.35,2.806]
[1726076369493,3.7758,132.42,132.38,3.7766]
[1726076369798,3.7759,132.41,132.38,3.7766]
[1726076370002,18.13,132.39,132.28,3.7793]
[1726076370188,18.13,132.39,132.2,10.4417564]
[1726076370189,18.13,132.33,132.27,1.4422]
[1726076370993,21.9083,132.33,132.28,3.7795]
[1726076371299,21.9083,132.33,132.27,1.4422]
[1726076371499,21.9083,132.33,132.28,1.3164]
[1726076371798,21.9083,132.33,132.29,3.7793]
[1726076372889,3.7785,132.32,132.28,5.0959]
[1726076374892,18.13,132.33,132.28,1.3164]
[1726076375093,18.13,132.31,132.27,1.4422]
[1726076375399,3.7795,132.29,132.27,1.4422]
[1726076385594,3.7796,132.28,132.27,1.4422]
[1726076386203,3.7795,132.29,132.27,1.4422]
[1726076389006,18.13,132.33,132.27,5.2221]
[1726076389007,3.7792,132.3,132.27,5.2221]
[1726076389200,18.13,132.35,132.27,1.4422]
[1726076389603,3.779,132.31,132.28,3.7795]
[1726076390003,3.75586208,132.34,132.28,3.7795]
[1726076390301,3.7791,132.3,132.27,5.222]
[1726076391208,3.7794,132.29,132.27,5.222]
[1726076392009,3.7792,132.3,132.27,5.222]
[1726076395311,3.7792,132.3,132.28,3.7796]
[1726076395710,3.7792,132.3,132.27,1.4422]
[1726076396107,3.7792,132.3,132.27,5.222]
[1726076396512,3.7793,132.29,132.27,1.4422]
[1726076397409,3.7792,132.3,132.27,5.2221]
[1726076397709,3.80538333,132.34,132.27,1.4422]
[1726076397958,3.7791,132.3,132.27,5.222]
[1726076398811,3.7791,132.3,132.28,3.7796]
[1726076399626,3.7791,132.3,132.27,5.222]
[1726076400514,3.7785,132.32,132.27,1.4422]
[1726076400716,18.13,132.39,132.28,18.13]
[1726076400909,18.13,132.41,132.31,18.13]
[1726076401115,3.7767,132.39,132.35,3.7775]
[1726076402010,3.78912656,132.42,132.33,19.5161]
[1726076402818,3.7767,132.39,132.35,3.7774]
[1726076403213,18.13,132.44,132.35,18.13]
[1726076403464,23.00279975,132.53,132.37,3.7768]
[1726076403465,3.7758,132.42,132.37,3.7768]
[1726076403624,106.61350195,132.46,132.37,3.7768]
[1726076403813,1.21921623,132.45,132.37,3.7768]
[1726076404221,3.7759,132.41,132.37,3.7768]
[1726076405624,110.30011874,132.46,132.36,18.13]
[1726076405816,3.7756,132.43,132.38,18.13]
[1726076406022,3.68661679,132.46,132.38,18.13]
[1726076406221,18.13,132.48,132.38,18.13]
[1726076406424,1.21902363,132.47,132.38,18.13]
[1726076406644,3.80270515,132.46,132.38,18.13]
[1726076407045,18.13,132.48,132.38,18.13]
[1726076407330,1.21897147,132.47,132.35,3.76369681]
[1726076407518,1.21897147,132.47,132.37,18.13]
[1726076408025,3.7758,132.42,132.38,3.7767]
[1726076409529,3.7758,132.42,132.39,3.7764]
[1726076409726,21.97010881,132.48,132.38,1.3871]
[1726076409923,3.84010881,132.48,132.39,18.13]
[1726076410379,18.13,132.49,132.39,19.4656]
[1726076410392,3.7749,132.45,132.41,3.7757]
[1726076411130,21.9914385,132.48,132.39,23.2418]
[1726076411324,18.13,132.48,132.39,19.4656]
[1726076411520,3.7755,132.43,132.39,19.4656]
[1726076411726,3.7755,132.43,132.39,23.242]
[1726076413827,3.79948624,132.46,132.39,1.3356]
[1726076414025,18.13,132.46,132.38,5.1638]
[1726076414226,21.86234116,132.46,132.38,5.1638]
[1726076414426,21.86234116,132.46,132.35,19.5308]
[1726076414830,1.21914477,132.45,132.37,3.777]
[1726076415131,1.21914477,132.45,132.35,19.5308]
[1726076415332,21.86234116,132.46,132.35,19.5308]
[1726076415635,1.21912169,132.45,132.35,19.5308]
[1726076415932,3.73234116,132.46,132.37,18.13]
[1726076416124,18.13,132.47,132.37,18.13]
[1726076416327,3.7755,132.43,132.39,3.7764]
[1726076416627,21.85346592,132.47,132.37,18.13]
[1726076416829,3.7758,132.42,132.38,3.7766]
[1726076417741,18.13,132.45,132.35,19.5308]
[1726076417932,18.13,132.43,132.35,1.4008]
[1726076418125,11.61,132.4,132.35,5.1783]
[1726076418631,3.7767,132.39,132.35,5.1783]
[1726076419940,3.7768,132.38,132.35,5.1783]
[1726076420729,3.7766,132.39,132.35,5.1783]
[1726076421327,18.14,132.43,132.35,5.1783]
[1726076422339,3.7768,132.39,132.35,5.1783]
[1726076422638,18.14,132.43,132.35,1.4008]
[1726076422835,3.777,132.38,132.35,1.4008]
[1726076423938,3.777,132.38,132.35,5.1784]
[1726076424632,18.14,132.43,132.35,1.4008]
[1726076424843,18.14,132.41,132.33,3.778]
[1726076425030,18.14,132.41,132.31,20.8323]
[1726076425829,3.7775,132.36,132.32,3.7782]
[1726076426036,3.7775,132.36,132.31,20.8323]
[1726076426428,3.7775,132.36,132.33,3.778]
[1726076426943,3.7778,132.35,132.32,3.7784]
[1726076427334,3.85684351,132.39,132.31,20.8323]
[1726076427536,3.7778,132.35,132.32,3.7784]
[1726076427741,3.74121755,132.38,132.31,20.8323]
[1726076427946,18.14,132.39,132.31,2.6923]
[1726076428382,3.7782,132.33,132.3,3.779]
[1726076429135,3.7786,132.32,132.28,1.3398]
[1726076429541,3.7786,132.32,132.29,3.7793]
[1726076432242,3.7783,132.33,132.3,3.779]
[1726076432744,3.70078625,132.39,132.29,18.14]
[1726076432932,18.14,132.4,132.29,18.14]
[1726076433137,1.21702962,132.39,132.29,18.14]
[1726076433348,3.7781,132.34,132.29,18.14]
[1726076433643,3.7781,132.34,132.29,21.84956248]
[1726076433843,3.7781,132.34,132.31,3.7787]